fUSD/lending_fUSD_20250620
["ID","MTS","AMOUNT","RATE_DAILY","PERIOD"]
[366737090,1750425051556,-490.0,0.00026283,4]
[366737092,1750425051566,-490.0,0.00026283,4]
[366737094,1750425051576,-580.87,0.00026283,4]
[366737096,1750425051586,-490.0,0.00026283,4]
[366737098,1750425051595,-490.0,0.00026283,4]
[366737100,1750425051605,-490.0,0.00026283,4]
[366737102,1750425051615,-151.0,0.00026284,7]
[366737104,1750425051627,-181.690034,0.00026284,7]
[366737106,1750425051637,-320.275227,0.00026284,7]
[366737108,1750425051648,-151.0,0.00026284,7]
[366737110,1750425051658,-151.0,0.00026284,7]
[366737112,1750425051669,-151.0,0.00026284,7]
[366737114,1750425051678,-151.0,0.00026284,7]
[366737116,1750425051688,-151.0,0.00026284,7]
[366737118,1750425051699,-151.0,0.00026284,7]
[366737120,1750425051709,-151.0,0.00026284,7]
[366737122,1750425051718,-151.0,0.00026284,7]
[366737124,1750425051728,-151.0,0.00026284,7]
[366737126,1750425051737,-151.0,0.00026284,7]
[366737128,1750425051747,-151.0,0.00026284,7]
[366737130,1750425051756,-151.0,0.00026284,7]
[366737132,1750425051766,-151.0,0.00026284,7]
[366737134,1750425051775,-151.0,0.00026284,7]
[366737136,1750425051784,-335.813999,0.00026284,7]
[366737138,1750425051793,-335.813999,0.00026284,7]
[366737140,1750425051802,-151.0,0.00026284,7]
[366737142,1750425051812,-490.0,0.00026284,4]
[366737144,1750425051822,-151.0,0.00026284,7]
[366737146,1750425051831,-151.0,0.00026284,7]
[366737148,1750425051841,-151.0,0.00026284,7]
[366737150,1750425051850,-490.0,0.00026284,4]
[366737152,1750425051859,-151.0,0.00026284,7]
[366737154,1750425051868,-490.0,0.00026284,4]
[366737156,1750425051877,-151.0,0.00026284,7]
[366737157,1750425051886,-519.764075,0.00026284,7]
[366737159,1750425051895,-293.901268,0.00026284,7]
[366737161,1750425051905,-151.0,0.00026284,7]
[366737163,1750425051915,-519.764075,0.00026284,7]
[366737165,1750425051924,-614.69,0.00026284,4]
[366737167,1750425051934,-490.0,0.00026284,4]
[366737169,1750425051943,-151.0,0.00026284,7]
[366737171,1750425051952,-284.65,0.00026284,4]
[366737173,1750425051962,-490.0,0.00026284,4]
[366737175,1750425051971,-151.0,0.00026284,7]
[366737177,1750425051981,-516.98,0.00026284,4]
[366737179,1750425051990,-151.0,0.00026284,7]
[366737181,1750425052000,-490.0,0.00026284,4]
[366737183,1750425052009,-490.0,0.00026284,4]
[366737185,1750425052019,-490.0,0.00026284,4]
[366737187,1750425052028,-490.0,0.00026284,4]
[366737189,1750425052038,-490.0,0.00026284,4]
[366737191,1750425052047,-667.016739,0.00026284,7]
[366737193,1750425052058,-667.016739,0.00026284,7]
[366737195,1750425052067,-490.0,0.00026284,4]
[366737197,1750425052077,-490.0,0.00026284,4]
[366737199,1750425052086,-490.0,0.00026284,4]
[366737201,1750425052096,-706.9,0.00026284,4]
[366737203,1750425052106,-490.0,0.00026284,4]
[366737205,1750425052115,-490.0,0.00026284,4]
[366737207,1750425052125,-490.0,0.00026284,4]
[366737209,1750425052135,-490.0,0.00026284,4]
[366737211,1750425052144,-490.0,0.00026284,4]
[366737213,1750425052154,-490.0,0.00026284,4]
[366737215,1750425052164,-493.359624,0.00026284,7]
[366737216,1750425052173,-493.359624,0.00026284,7]
[366737218,1750425052183,-151.0,0.00026284,7]
[366737220,1750425052192,-151.0,0.00026284,7]
[366737222,1750425052202,-490.0,0.00026284,4]
[366737224,1750425052211,-151.0,0.00026284,7]
[366737226,1750425052220,-490.0,0.00026284,4]
[366737228,1750425052230,-151.0,0.00026284,7]
[366737230,1750425052239,-490.0,0.00026284,4]
[366737232,1750425052248,-490.0,0.00026284,4]
[366737234,1750425052258,-151.0,0.00026284,7]
[366737236,1750425052268,-151.0,0.00026284,7]
[366737237,1750425052278,-490.0,0.00026284,4]
[366737239,1750425052287,-151.0,0.00026284,7]
[366737241,1750425052296,-151.0,0.00026284,7]
[366737243,1750425052307,-467.402759,0.00026284,7]
[366737245,1750425052316,-467.402759,0.00026284,7]
[366737246,1750425052326,-490.0,0.00026284,4]
[366737247,1750425052336,-151.0,0.00026284,7]
[366737248,1750425052409,-467.402759,0.00026284,7]
[366737249,1750425052420,-467.402759,0.00026284,7]
[366737250,1750425052430,-151.0,0.00026284,7]
[366737251,1750425052440,-490.0,0.00026284,4]
[366737252,1750425052451,-490.0,0.00026284,4]
[366737253,1750425052460,-353.493329,0.00026284,7]
[366737254,1750425052470,-228.58,0.00026284,4]
[366737255,1750425052480,-151.0,0.00026284,7]
[366737256,1750425052490,-353.493329,0.00026284,7]
[366737257,1750425052500,-151.0,0.00026284,7]
[366737258,1750425052510,-490.0,0.00026284,4]
[366737259,1750425052520,-490.0,0.00026284,4]
[366737260,1750425052529,-490.0,0.00026284,4]
[366737261,1750425052539,-347.242006,0.00026284,7]
[366737262,1750425052548,-347.242006,0.00026284,7]
[366737263,1750425052558,-151.0,0.00026284,7]
[366737264,1750425052567,-151.0,0.00026284,7]
[366737265,1750425052578,-490.0,0.00026284,4]
[366737266,1750425052587,-882.27,0.00026284,4]
[366737267,1750425052597,-490.0,0.00026284,4]
[366737268,1750425052608,-280.52,0.00026284,4]
[366737269,1750425052619,-151.487683,0.00026284,7]
[366737270,1750425052630,-895.07,0.00026284,4]
[366737271,1750425052641,-302.800984,0.00026284,7]
[366737272,1750425052651,-490.0,0.00026284,4]
[366737273,1750425052661,-490.0,0.00026284,4]
[366737274,1750425052671,-490.0,0.00026284,4]
[366737275,1750425052681,-151.0,0.00026284,7]
[366737276,1750425052690,-268.38,0.00026284,4]
[366737277,1750425052700,-490.0,0.00026284,4]
[366737278,1750425052710,-490.0,0.00026284,4]
[366737279,1750425052720,-2318.72,0.00026284,4]
[366737280,1750425052729,-824.37,0.00026284,4]
[366737282,1750425052739,-490.0,0.00026284,4]
[366737284,1750425052748,-580.79,0.00026284,4]
[366737286,1750425052758,-490.0,0.00026284,4]
[366737287,1750425052767,-490.0,0.00026284,4]
[366737288,1750425052777,-490.0,0.00026284,4]
[366737289,1750425052787,-490.0,0.00026284,4]
[366737290,1750425052797,-162.49,0.00026284,4]
[366737291,1750425052806,-614.17,0.00026284,4]
[366737292,1750425052816,-490.0,0.00026284,4]
[366737293,1750425052826,-490.0,0.00026284,4]
[366737294,1750425052835,-490.0,0.00026284,4]
[366737295,1750425052845,-595.72,0.00026284,4]
[366737296,1750425052854,-151.0,0.00026284,7]
[366737297,1750425052863,-151.0,0.00026284,7]
[366737298,1750425052873,-490.0,0.00026284,4]
[366737299,1750425052883,-1149.31,0.00026284,4]
[366737300,1750425052893,-490.0,0.00026284,4]
[366737301,1750425052903,-490.0,0.00026284,4]
[366737302,1750425052913,-490.0,0.00026284,4]
[366737303,1750425052922,-490.0,0.00026284,4]
[366737304,1750425052932,-513.18843627,0.00026284,4]
[366737305,1750425052941,-313.6,0.00026284,4]
[366737306,1750425052951,-490.0,0.00026284,4]
[366737307,1750425052960,-490.0,0.00026284,4]
[366737308,1750425052970,-490.0,0.00026284,4]
[366737309,1750425052980,-490.0,0.00026284,4]
[366737310,1750425052989,-151.0,0.00026284,7]
[366737311,1750425052999,-151.0,0.00026284,7]
[366737313,1750425053009,-490.0,0.00026284,4]
[366737315,1750425053019,-360.247694,0.00026284,7]
[366737317,1750425053028,-151.0,0.00026284,7]
[366737319,1750425053038,-228.033642,0.00026284,7]
[366737320,1750425053048,-490.0,0.00026284,4]
[366737321,1750425053057,-198.58,0.00026284,4]
[366737322,1750425053067,-360.247694,0.00026284,7]
[366737323,1750425053076,-490.0,0.00026284,4]
[366737324,1750425053087,-490.0,0.00026284,4]
[366737325,1750425053096,-490.0,0.00026284,4]
[366737326,1750425053106,-917.14,0.00026284,4]
[366737327,1750425053115,-269.816138,0.00026284,7]
[366737328,1750425053125,-269.816138,0.00026284,7]
[366737329,1750425053135,-490.0,0.00026284,4]
[366737330,1750425053144,-925.37,0.00026284,4]
[366737331,1750425053154,-715.01,0.00026284,4]
[366737332,1750425053163,-490.0,0.00026284,4]
[366737333,1750425053172,-490.0,0.00026284,4]
[366737334,1750425053182,-490.0,0.00026284,4]
[366737335,1750425053191,-151.0,0.00026284,7]
[366737336,1750425053200,-490.0,0.00026284,4]
[366737337,1750425053210,-1368.22,0.00026284,4]
[366737338,1750425053220,-490.0,0.00026284,4]
[366737339,1750425053229,-490.0,0.00026284,4]
[366737340,1750425053239,-263.86,0.00026284,4]
[366737341,1750425053249,-490.0,0.00026284,4]
[366737342,1750425053259,-490.0,0.00026284,4]
[366737343,1750425053268,-429.49,0.00026284,4]
[366737344,1750425053278,-192.36,0.00026284,4]
[366737345,1750425053287,-490.0,0.00026284,4]
[366737346,1750425053297,-152.31,0.00026284,4]
[366737347,1750425053307,-821.26,0.00026284,4]
[366737348,1750425053316,-151.0,0.00026284,7]
[366737349,1750425053327,-490.0,0.00026284,4]
[366737350,1750425053336,-610.33,0.00026284,4]
[366737351,1750425053347,-633.65,0.00026284,4]
[366737352,1750425053357,-490.0,0.00026284,4]
[366737353,1750425053367,-1787.03,0.00026284,4]
[366737354,1750425053377,-614.44,0.00026284,4]
[366737355,1750425053388,-490.0,0.00026284,4]
[366737356,1750425053398,-151.0,0.00026284,7]
[366737357,1750425053408,-490.0,0.00026284,4]
[366737358,1750425053417,-151.0,0.00026284,7]
[366737359,1750425053427,-293.183102,0.00026284,7]
[366737360,1750425053437,-293.183102,0.00026284,7]
[366737361,1750425053447,-285.910761,0.00026284,7]
[366737362,1750425053457,-490.0,0.00026284,4]
[366737363,1750425053467,-687.9,0.00026284,4]
[366737364,1750425053477,-151.0,0.00026284,7]
[366737365,1750425053486,-490.0,0.00026284,4]
[366737366,1750425053497,-1230.49,0.00026284,4]
[366737367,1750425053507,-847.19,0.00026284,4]
[366737368,1750425053518,-151.970844,0.00026284,7]
[366737369,1750425053527,-490.0,0.00026284,4]
[366737370,1750425053537,-151.0,0.00026284,7]
[366737371,1750425053548,-303.354071,0.00026284,7]
[366737372,1750425053558,-151.0,0.00026284,7]
[366737373,1750425053570,-303.354071,0.00026284,7]
[366737374,1750425053579,-2787.52,0.00026284,4]
[366737375,1750425053590,-308.78,0.00026284,4]
[366737376,1750425053600,-1151.55,0.00026284,4]
[366737377,1750425053610,-490.0,0.00026284,4]
[366737378,1750425053622,-246.57,0.00026284,4]
[366737379,1750425053633,-1096.2,0.00026284,4]
[366737380,1750425053642,-375.33,0.00026284,4]
[366737381,1750425053651,-490.0,0.00026284,4]
[366737382,1750425053663,-922.72,0.00026284,4]
[366737383,1750425053672,-151.0,0.00026284,7]
[366737384,1750425053683,-151.0,0.00026284,7]
[366737385,1750425053693,-151.0,0.00026284,7]
[366737386,1750425053703,-1925.21,0.00026284,4]
[366737388,1750425053714,-490.0,0.00026284,4]
[366737390,1750425053723,-490.0,0.00026284,4]
[366737392,1750425053733,-490.0,0.00026284,4]
[366737394,1750425053742,-151.818371,0.00026284,7]
[366737395,1750425053751,-490.0,0.00026284,4]
[366737397,1750425053760,-490.0,0.00026284,4]
[366737399,1750425053770,-490.0,0.00026284,4]
[366737401,1750425053780,-802.377668,0.00026284,7]
[366737403,1750425053790,-151.0,0.00026284,7]
[366737406,1750425053800,-802.377668,0.00026284,7]
[366737407,1750425053810,-490.0,0.00026284,4]
[366737410,1750425053820,-490.0,0.00026284,4]
[366737411,1750425053830,-151.0,0.00026284,7]
[366737414,1750425053840,-4584.33,0.00026284,4]
[366737415,1750425053849,-995.09,0.00026284,4]
[366737417,1750425053859,-557.77,0.00026284,4]
[366737419,1750425053868,-169.25,0.00026284,4]
[366737421,1750425053878,-151.0,0.00026284,7]
[366737423,1750425053888,-790.02,0.00026284,4]
[366737425,1750425053898,-490.0,0.00026284,4]
[366737427,1750425053908,-490.0,0.00026284,4]
[366737429,1750425053917,-151.0,0.00026284,7]
[366737431,1750425053927,-151.0,0.00026284,7]
[366737433,1750425053936,-151.0,0.00026284,7]
[366737435,1750425053946,-151.0,0.00026284,7]
[366737437,1750425053956,-502.78,0.00026284,4]
[366737439,1750425053966,-490.0,0.00026284,4]
[366737441,1750425053975,-379.69,0.00026284,4]
[366737443,1750425053985,-425.86,0.00026284,4]
[366737445,1750425053994,-3469.346953,0.00026284,7]
[366737447,1750425054004,-152.508377,0.00026284,7]
[366737449,1750425054013,-3469.346953,0.00026284,7]
[366737451,1750425054023,-152.508377,0.00026284,7]
[366737453,1750425054034,-228.22,0.00026284,4]
[366737455,1750425054044,-151.0,0.00026285,7]
[366737457,1750425054054,-151.0,0.00026285,7]
[366737459,1750425054063,-151.0,0.00026285,7]
[366737461,1750425054074,-460.0,0.00026285,4]
[366737464,1750425054085,-335.813999,0.00026285,7]
[366737465,1750425054095,-335.813999,0.00026285,7]
[366737467,1750425054104,-151.0,0.00026285,7]
[366737469,1750425054115,-151.0,0.00026285,7]
[366737471,1750425054126,-183.194187,0.00026285,7]
[366737474,1750425054135,-151.0,0.00026285,7]
[366737475,1750425054145,-151.0,0.00026285,7]
[366737478,1750425054156,-151.0,0.00026285,7]
[366737480,1750425054165,-667.016739,0.00026285,7]
[366737482,1750425054175,-667.016739,0.00026285,7]
[366737484,1750425054184,-151.0,0.00026285,7]
[366737486,1750425054194,-151.0,0.00026285,7]
[366737488,1750425054203,-151.0,0.00026285,7]
[366737490,1750425054213,-151.0,0.00026285,7]
[366737492,1750425054222,-353.493329,0.00026285,7]
[366737494,1750425054232,-353.493329,0.00026285,7]
[366737495,1750425054241,-923.03021402,0.00026306,2]
[366737497,1750425054251,-151.0,0.00026347,7]
[366737499,1750425054260,-203.498324,0.00026347,7]
[366737501,1750425054270,-151.0,0.00026347,7]
[366737503,1750425054279,-203.498324,0.00026347,7]
[366737506,1750425054288,-151.0,0.00026347,7]
[366737508,1750425054298,-200.0,0.00026348,2]
[366737509,1750425054307,-399.57889482,0.00026348,14]
[366737511,1750425054316,-393.0,0.00026407,2]
[366737513,1750425054326,-151.0,0.00026551,7]
[366737515,1750425054335,-151.92952,0.00026551,7]
[366737517,1750425054346,-151.728297,0.00026551,7]
[366737519,1750425054355,-151.0,0.00026551,7]
[366737521,1750425054364,-231.454996,0.00026551,7]
[366737523,1750425054374,-347.242006,0.00026551,7]
[366737525,1750425054383,-347.242006,0.00026551,7]
[366737527,1750425054392,-302.800984,0.00026551,7]
[366737529,1750425054402,-396.42618495,0.00026557,4]
[366737531,1750425054411,-490.0,0.00026557,4]
[366737533,1750425054421,-490.0,0.00026557,4]
[366737535,1750425054430,-490.0,0.00026557,4]
[366737537,1750425054439,-490.0,0.00026557,4]
[366737539,1750425054449,-490.0,0.00026557,4]
[366737541,1750425054459,-1082.4,0.00026557,4]
[366737543,1750425054468,-490.0,0.00026557,4]
[366737545,1750425054477,-490.0,0.00026557,4]
[366737547,1750425054487,-490.0,0.00026557,4]
[366737549,1750425054496,-490.0,0.00026557,4]
[366737551,1750425054506,-490.0,0.00026557,4]
[366737553,1750425054515,-173.58,0.00026557,4]
[366737555,1750425054525,-490.0,0.00026557,4]
[366737557,1750425054534,-616.37,0.00026557,4]
[366737559,1750425054543,-582.24,0.00026557,4]
[366737561,1750425054553,-761.34,0.00026557,4]
[366737562,1750425054562,-490.0,0.00026557,4]
[366737564,1750425054572,-490.0,0.00026557,4]
[366737566,1750425054583,-490.0,0.00026557,4]
[366737568,1750425054593,-490.0,0.00026557,4]
[366737570,1750425054603,-1662.22,0.00026557,4]
[366737572,1750425054613,-490.0,0.00026557,4]
[366737574,1750425054623,-490.0,0.00026557,4]
[366737576,1750425054632,-490.0,0.00026557,4]
[366737578,1750425054642,-490.0,0.00026557,4]
[366737580,1750425054655,-836.33,0.00026557,4]
[366737582,1750425054664,-490.0,0.00026557,4]
[366737584,1750425054674,-490.0,0.00026557,4]
[366737586,1750425054684,-490.0,0.00026557,4]
[366737588,1750425054693,-490.0,0.00026557,4]
[366737590,1750425054702,-490.0,0.00026557,4]
[366737592,1750425054712,-490.0,0.00026557,4]
[366737594,1750425054722,-490.0,0.00026557,4]
[366737596,1750425054731,-490.0,0.00026557,4]
[366737598,1750425054741,-490.0,0.00026557,4]
[366737600,1750425054750,-490.0,0.00026557,4]
[366737602,1750425054759,-490.0,0.00026557,4]
[366737604,1750425054768,-490.0,0.00026557,4]
[366737606,1750425054778,-490.0,0.00026557,4]
[366737608,1750425054787,-172.6,0.00026557,4]
[366737610,1750425054796,-490.0,0.00026557,4]
[366737612,1750425054806,-2028.97,0.00026557,4]
[366737614,1750425054816,-490.0,0.00026557,4]
[366737616,1750425054825,-235.73449,0.00026557,7]
[366737618,1750425054835,-490.0,0.00026557,4]
[366737620,1750425054844,-939.95,0.00026557,4]
[366737622,1750425054853,-490.0,0.00026557,4]
[366737624,1750425054863,-1297.1,0.00026557,4]
[366737626,1750425054873,-490.0,0.00026557,4]
[366737628,1750425054883,-1628.15,0.00026557,4]
[366737630,1750425054892,-16090.52,0.00026557,4]
[366737632,1750425054901,-490.0,0.00026557,4]
[366737634,1750425054911,-561.36,0.00026557,4]
[366737636,1750425054920,-490.0,0.00026557,4]
[366737638,1750425054930,-490.0,0.00026557,4]
[366737640,1750425054939,-490.0,0.00026557,4]
[366737642,1750425054949,-3649.34,0.00026557,4]
[366737644,1750425054958,-564.57,0.00026557,4]
[366737646,1750425054968,-490.0,0.00026557,4]
[366737648,1750425054978,-490.0,0.00026557,4]
[366737650,1750425054988,-643.98,0.00026557,4]
[366737652,1750425054998,-802.377668,0.00026557,7]
[366737654,1750425055008,-593.25,0.00026557,4]
[366737656,1750425055018,-151.0,0.00026557,7]
[366737658,1750425055028,-802.377668,0.00026557,7]
[366737660,1750425055038,-558.08,0.00026557,4]
[366737662,1750425055047,-490.0,0.00026557,4]
[366737664,1750425055057,-151.0,0.00026557,7]
[366737666,1750425055066,-260.31,0.00026557,4]
[366737668,1750425055075,-490.0,0.00026557,4]
[366737670,1750425055084,-613.34,0.00026557,4]
[366737672,1750425055095,-730.32,0.00026557,4]
[366737674,1750425055104,-1933.21,0.00026557,4]
[366737676,1750425055114,-1122.74,0.00026557,4]
[366737678,1750425055124,-490.0,0.00026557,4]
[366737680,1750425055133,-2397.6,0.00026557,4]
[366737682,1750425055142,-490.0,0.00026557,4]
[366737684,1750425055152,-490.0,0.00026557,4]
[366737686,1750425055162,-490.0,0.00026557,4]
[366737688,1750425055171,-490.0,0.00026557,4]
[366737690,1750425055181,-490.0,0.00026557,4]
[366737692,1750425055191,-403.55,0.00026557,4]
[366737694,1750425055200,-494.92113755,0.00026557,4]
[366737695,1750425055211,-151.0,0.00026557,7]
[366737696,1750425055220,-490.0,0.00026557,4]
[366737697,1750425055230,-490.0,0.00026557,4]
[366737698,1750425055240,-1227.78,0.00026557,4]
[366737699,1750425055250,-490.0,0.00026557,4]
[366737700,1750425055261,-490.0,0.00026557,4]
[366737701,1750425055272,-551.34,0.00026557,4]
[366737702,1750425055282,-490.0,0.00026557,4]
[366737703,1750425055291,-522.59,0.00026557,4]
[366737704,1750425055302,-582.66,0.00026557,4]
[366737705,1750425055311,-490.0,0.00026557,4]
[366737706,1750425055322,-490.0,0.00026557,4]
[366737707,1750425055332,-490.0,0.00026557,4]
[366737709,1750425055342,-490.0,0.00026557,4]
[366737711,1750425055352,-490.0,0.00026557,4]
[366737713,1750425055361,-490.0,0.00026557,4]
[366737715,1750425055371,-490.0,0.00026557,4]
[366737717,1750425055381,-929.32,0.00026557,4]
[366737719,1750425055390,-616.11,0.00026557,4]
[366737721,1750425055400,-490.0,0.00026557,4]
[366737723,1750425055410,-151.0,0.00026557,7]
[366737725,1750425055420,-490.0,0.00026557,4]
[366737727,1750425055430,-151.0,0.00026557,7]
[366737729,1750425055441,-880.22,0.00026557,4]
[366737731,1750425055451,-151.0,0.00026557,7]
[366737733,1750425055461,-153.055448,0.00026557,7]
[366737735,1750425055470,-490.0,0.00026557,4]
[366737737,1750425055481,-747.33,0.00026557,4]
[366737739,1750425055491,-699.01,0.00026557,4]
[366737741,1750425055501,-490.0,0.00026557,4]
[366737743,1750425055511,-622.69,0.00026557,4]
[366737745,1750425055521,-490.0,0.00026557,4]
[366737747,1750425055531,-593.4,0.00026557,4]
[366737749,1750425055542,-490.0,0.00026557,4]
[366737751,1750425055552,-3469.346953,0.00026557,7]
[366737753,1750425055562,-490.0,0.00026557,4]
[366737755,1750425055572,-3469.346953,0.00026557,7]
[366737757,1750425055583,-1104.09,0.00026557,2]
[366737759,1750425055593,-255.11,0.00026557,4]
[366737761,1750425055603,-4453.74,0.00026557,4]
[366737763,1750425055614,-490.0,0.00026557,4]
[366737765,1750425055624,-636.41,0.00026557,4]
[366737767,1750425055637,-490.0,0.00026557,4]
[366737769,1750425055649,-490.0,0.00026557,4]
[366737771,1750425055659,-1166.78,0.00026557,4]
[366737773,1750425055670,-490.0,0.00026557,4]
[366737775,1750425055680,-490.0,0.00026557,4]
[366737777,1750425055690,-490.0,0.00026557,2]
[366737779,1750425055700,-528.04,0.00026557,4]
[366737781,1750425055710,-429.11,0.00026557,4]
[366737783,1750425055720,-580.87,0.00026557,4]
[366737785,1750425055730,-490.0,0.00026557,4]
[366737787,1750425055740,-490.0,0.00026557,4]
[366737789,1750425055749,-490.0,0.00026557,4]
[366737791,1750425055760,-151.0,0.00026558,7]
[366737793,1750425055769,-200.897302,0.00026558,7]
[366737795,1750425055779,-151.0,0.00026558,7]
[366737797,1750425055788,-151.0,0.00026558,7]
[366737799,1750425055798,-151.0,0.00026558,7]
[366737801,1750425055808,-151.0,0.00026558,7]
[366737803,1750425055819,-249.788896,0.00026558,7]
[366737805,1750425055830,-249.788896,0.00026558,7]
[366737807,1750425055840,-151.0,0.00026558,7]
[366737809,1750425055849,-151.0,0.00026558,7]
[366737811,1750425055859,-151.0,0.00026558,7]
[366737813,1750425055869,-151.0,0.00026558,7]
[366737815,1750425055879,-151.0,0.00026558,7]
[366737817,1750425055888,-151.0,0.00026558,7]
[366737819,1750425055897,-335.813999,0.00026558,7]
[366737821,1750425055907,-335.813999,0.00026558,7]
[366737823,1750425055917,-151.0,0.00026558,7]
[366737825,1750425055927,-490.0,0.00026558,4]
[366737827,1750425055936,-151.0,0.00026558,7]
[366737829,1750425055947,-151.0,0.00026558,7]
[366737831,1750425055957,-151.0,0.00026558,7]
[366737833,1750425055967,-490.0,0.00026558,4]
[366737835,1750425055977,-490.0,0.00026558,4]
[366737837,1750425055987,-151.0,0.00026558,7]
[366737839,1750425055997,-519.764075,0.00026558,7]
[366737841,1750425056007,-151.0,0.00026558,7]
[366737843,1750425056017,-519.764075,0.00026558,7]
[366737845,1750425056027,-490.0,0.00026558,4]
[366737848,1750425056038,-206.666138,0.00026558,7]
[366737849,1750425056049,-490.0,0.00026558,4]
[366737851,1750425056059,-516.98,0.00026558,4]
[366737854,1750425056069,-490.0,0.00026558,4]
[366737856,1750425056080,-490.0,0.00026558,4]
[366737858,1750425056090,-490.0,0.00026558,4]
[366737860,1750425056100,-490.0,0.00026558,4]
[366737862,1750425056110,-382.93,0.00026558,4]
[366737864,1750425056120,-667.016739,0.00026558,7]
[366737866,1750425056131,-490.0,0.00026558,4]
[366737868,1750425056141,-667.016739,0.00026558,7]
[366737870,1750425056150,-490.0,0.00026558,4]
[366737872,1750425056160,-490.0,0.00026558,4]
[366737874,1750425056169,-706.9,0.00026558,4]
[366737876,1750425056179,-490.0,0.00026558,4]
[366737878,1750425056189,-490.0,0.00026558,4]
[366737880,1750425056200,-207.03,0.00026558,4]
[366737882,1750425056210,-621.62724752,0.00026558,4]
[366737884,1750425056219,-490.0,0.00026558,4]
[366737886,1750425056229,-490.0,0.00026558,4]
[366737888,1750425056239,-493.359624,0.00026558,7]
[366737890,1750425056249,-493.359624,0.00026558,7]
[366737892,1750425056259,-151.0,0.00026558,7]
[366737894,1750425056269,-151.0,0.00026558,7]
[366737896,1750425056279,-490.0,0.00026558,4]
[366737898,1750425056289,-490.0,0.00026558,4]
[366737900,1750425056299,-151.0,0.00026558,7]
[366737903,1750425056309,-490.0,0.00026558,4]
[366737905,1750425056319,-896.521458,0.00026558,7]
[366737907,1750425056329,-490.0,0.00026558,4]
[366737909,1750425056339,-152.173089,0.00026558,7]
[366737911,1750425056349,-151.0,0.00026558,7]
[366737913,1750425056359,-363.62,0.00026558,4]
[366737915,1750425056369,-151.0,0.00026558,7]
[366737917,1750425056379,-467.402759,0.00026558,7]
[366737919,1750425056389,-490.0,0.00026558,4]
[366737921,1750425056400,-467.402759,0.00026558,7]
[366737923,1750425056410,-151.0,0.00026558,7]
[366737925,1750425056420,-490.0,0.00026558,4]
[366737927,1750425056431,-490.0,0.00026558,4]
[366737929,1750425056441,-353.493329,0.00026558,7]
[366737931,1750425056452,-353.493329,0.00026558,7]
[366737933,1750425056462,-296.869197,0.00026558,7]
[366737935,1750425056473,-490.0,0.00026558,4]
[366737937,1750425056483,-490.0,0.00026558,4]
[366737939,1750425056493,-490.0,0.00026558,4]
[366737941,1750425056504,-347.242006,0.00026558,7]
[366737943,1750425056514,-347.242006,0.00026558,7]
[366737945,1750425056525,-151.0,0.00026558,7]